bitfinex/quotes_BTCUSD_20240703
["timestamp","ask_amount","ask_price","bid_price","bid_amount"]
[1720025675837,0.92545,60573.0,60572.0,0.23447965]
[1720025676048,0.92545,60573.0,60572.0,0.44247965]
[1720025676247,0.92545,60573.0,60572.0,0.42847965]
[1720025676449,0.92545,60573.0,60572.0,0.42837965]
[1720025676655,0.92545,60573.0,60572.0,0.44237965]
[1720025676857,0.92545,60573.0,60572.0,0.74237965]
[1720025677052,0.59527,60573.0,60572.0,0.74237965]
[1720025677801,0.59527,60573.0,60572.0,0.75637965]
[1720025678144,0.59527,60573.0,60572.0,0.72837965]
[1720025678344,0.59527,60573.0,60572.0,0.74237965]
[1720025678573,0.59527,60573.0,60572.0,0.75637965]
[1720025678793,0.1,60573.0,60572.0,1.05628015]
[1720025678977,0.0001,60575.0,60574.0,0.76038135]
[1720025679178,0.0001,60575.0,60574.0,1.05498015]
[1720025680259,0.0001,60575.0,60574.0,2.08031515]
[1720025680468,0.0001,60575.0,60574.0,2.44356915]
[1720025680717,0.00084,60594.0,60590.0,1.07650435]
[1720025680882,0.00084,60594.0,60590.0,1.97899015]
[1720025681099,0.00084,60594.0,60590.0,2.30907715]
[1720025681682,0.00084,60594.0,60590.0,2.63916415]
[1720025681887,0.00084,60594.0,60590.0,2.30907715]
[1720025682734,0.00084,60594.0,60590.0,2.32307715]
[1720025683133,0.00084,60594.0,60590.0,2.32297715]
[1720025683348,0.00084,60594.0,60590.0,1.30856015]
[1720025683564,0.165036,60593.0,60590.0,1.30856015]
[1720025683863,0.165036,60593.0,60590.0,1.32256015]
[1720025684236,0.165036,60593.0,60590.0,1.02246015]
[1720025684443,0.165038,60592.0,60590.0,1.32246015]
[1720025684824,0.330909,60594.0,60590.0,0.51805965]
[1720025684825,0.495953,60591.0,60590.0,0.51805965]
[1720025685073,0.826035,60591.0,60590.0,0.26197965]
[1720025685295,1.256117,60591.0,60590.0,0.26197965]
[1720025685838,1.256117,60591.0,60590.0,0.23197965]
[1720025686417,1.256117,60591.0,60590.0,0.21797965]
[1720025686609,1.256117,60591.0,60590.0,0.21787965]
[1720025687386,1.256117,60591.0,60590.0,0.23187965]
[1720025687989,1.256117,60591.0,60590.0,0.21777965]
[1720025688402,1.256117,60591.0,60590.0,0.21767965]
[1720025689390,1.256117,60591.0,60590.0,0.21757965]
[1720025689594,1.639499,60591.0,60590.0,0.1737988]
[1720025689800,1.639499,60591.0,60590.0,0.1597988]
[1720025689997,1.639499,60591.0,60590.0,0.20357965]
[1720025690245,1.639499,60591.0,60590.0,0.23157965]
[1720025690657,1.639499,60591.0,60590.0,0.21757965]
[1720025690856,1.639499,60591.0,60590.0,0.1597988]
[1720025691192,1.639499,60591.0,60590.0,0.21757965]
[1720025691373,2.0328805,60591.0,60590.0,0.1737988]
[1720025691914,1.7027985,60591.0,60590.0,0.21757965]
[1720025692118,1.7027985,60591.0,60590.0,0.1737988]
[1720025693386,1.7027985,60591.0,60590.0,0.1597988]
[1720025693588,1.7027985,60591.0,60590.0,0.1737988]
[1720025693836,1.7027985,60591.0,60590.0,0.1827988]
[1720025694327,1.7027985,60591.0,60590.0,0.1687988]
[1720025694527,1.7027985,60591.0,60590.0,0.1817988]
[1720025695611,1.7027985,60591.0,60590.0,0.22557965]
[1720025695814,1.7027985,60591.0,60590.0,0.1817988]
[1720025698432,1.7027985,60591.0,60590.0,0.22557965]
[1720025699993,1.586199,60591.0,60590.0,0.22557965]
[1720025700472,0.595953,60591.0,60590.0,0.36627965]
[1720025700679,0.165871,60591.0,60590.0,0.36627965]
[1720025700872,0.495953,60591.0,60590.0,0.36627965]
[1720025701370,0.826035,60591.0,60590.0,0.33627965]
[1720025701615,1.156117,60591.0,60590.0,0.20357965]
[1720025701815,1.156117,60591.0,60590.0,0.21657965]
[1720025702052,1.256117,60591.0,60590.0,0.23057965]
[1720025702272,0.926035,60591.0,60590.0,0.23057965]
[1720025702505,0.926035,60591.0,60590.0,0.23357965]
[1720025702734,0.265871,60591.0,60590.0,0.23357965]
[1720025703156,0.595953,60591.0,60590.0,0.23357965]
[1720025703910,0.595953,60591.0,60590.0,0.24257965]
[1720025704314,0.595953,60591.0,60590.0,0.23357965]
[1720025704521,1.256117,60591.0,60590.0,0.21657965]
[1720025704927,1.256117,60591.0,60590.0,0.23057965]
[1720025705104,1.256117,60591.0,60590.0,0.21757965]
[1720025705513,1.256117,60591.0,60590.0,0.23157965]
[1720025706458,1.256117,60591.0,60590.0,0.21757965]
[1720025706651,1.2563165,60591.0,60590.0,0.21757965]
[1720025706892,1.586199,60591.0,60590.0,0.1877988]
[1720025707092,1.586199,60591.0,60590.0,0.20357965]
[1720025707093,1.690999,60591.0,60590.0,0.20357965]
[1720025707407,1.690999,60591.0,60590.0,0.21757965]
[1720025707879,1.690999,60591.0,60590.0,0.20357965]
[1720025708325,1.690999,60591.0,60590.0,0.21657965]
[1720025708687,1.690999,60591.0,60590.0,0.23057965]
[1720025708888,1.690999,60591.0,60590.0,0.21757965]
[1720025709558,1.690999,60591.0,60590.0,0.20357965]
[1720025709873,1.256117,60591.0,60590.0,0.21757965]
[1720025710007,1.256117,60591.0,60590.0,0.24757965]
[1720025710207,1.256117,60591.0,60590.0,0.21757965]
[1720025710408,1.256117,60591.0,60590.0,0.23057965]
[1720025711171,1.256117,60591.0,60590.0,0.26057965]
[1720025711583,0.00083,60591.0,60590.0,1.10752315]
[1720025711725,0.00084,60594.0,60593.0,0.495106]
[1720025711935,0.329967,60613.0,60612.0,0.0591]
[1720025712175,0.494948,60613.0,60612.0,0.20407965]
[1720025712375,0.824915,60613.0,60612.0,0.20407965]
[1720025712789,1.154882,60613.0,60612.0,0.20407965]
[1720025713680,1.154882,60613.0,60612.0,0.1602988]
[1720025713880,1.154882,60613.0,60612.0,0.20407965]
[1720025714121,1.254882,60613.0,60612.0,0.20407965]
[1720025715049,1.254882,60613.0,60612.0,0.21507965]
[1720025715930,1.254882,60613.0,60612.0,0.22907965]
[1720025716127,1.254882,60613.0,60612.0,0.21507965]
[1720025716569,1.254882,60613.0,60612.0,0.22907965]
[1720025716922,1.254882,60613.0,60612.0,0.21507965]
[1720025717132,1.254882,60613.0,60612.0,0.22907965]
[1720025717411,1.254882,60613.0,60612.0,0.21507965]
[1720025717835,1.254882,60613.0,60612.0,0.21807965]
[1720025718238,1.254882,60613.0,60612.0,0.23207965]
[1720025718441,0.594943,60613.0,60612.0,0.26207965]
[1720025718637,0.33740752,60613.0,60612.0,0.26207965]
[1720025718841,0.50238852,60613.0,60612.0,0.26207965]
[1720025719200,0.50238852,60613.0,60612.0,0.24807965]
[1720025719359,0.50238852,60613.0,60612.0,0.23407965]
[1720025719558,0.50238852,60613.0,60612.0,0.24807965]
[1720025719728,0.17242652,60613.0,60612.0,0.25907965]
[1720025719926,0.17242652,60613.0,60612.0,0.24507965]
[1720025720346,0.17242652,60613.0,60612.0,0.25907965]
[1720025720546,0.50238852,60613.0,60612.0,0.25907965]
[1720025720947,0.83235052,60613.0,60612.0,0.22907965]
[1720025721347,0.83235052,60613.0,60612.0,0.21807965]
[1720025721626,1.16231252,60613.0,60612.0,0.23207965]
[1720025721830,0.659924,60613.0,60612.0,0.23207965]
[1720025722033,1.154867,60613.0,60612.0,0.23207965]
[1720025723260,1.154867,60613.0,60612.0,0.26207965]
[1720025724140,1.254867,60613.0,60612.0,0.23207965]
[1720025724375,1.2550665,60613.0,60612.0,0.23207965]
[1720025724605,1.254867,60613.0,60612.0,0.23207965]
[1720025725344,1.254867,60613.0,60612.0,0.45277965]
[1720025725345,0.594943,60613.0,60612.0,0.45277965]
[1720025726158,0.264981,60613.0,60612.0,0.45277965]
[1720025726778,0.1,60613.0,60612.0,0.45277965]
[1720025727153,0.1,60619.0,60618.0,0.07378085]
[1720025727547,0.594897,60619.0,60618.0,0.23407965]
[1720025728459,0.264964,60619.0,60618.0,0.23407965]
[1720025728659,0.1,60619.0,60618.0,0.43977965]
[1720025729289,0.594893,60619.0,60618.0,0.43977965]
[1720025729630,0.1,60619.0,60618.0,0.43177965]
[1720025730009,0.264964,60619.0,60618.0,0.44277965]
[1720025730823,0.264964,60619.0,60618.0,0.43177965]
[1720025731066,0.594893,60619.0,60618.0,0.43177965]
[1720025731278,0.264964,60619.0,60618.0,0.44577965]
[1720025731528,0.338257,60624.0,60618.0,0.44577965]
[1720025731529,0.173301,60624.0,60623.0,0.07378085]
[1720025731755,0.00835,60624.0,60623.0,0.23407965]
[1720025731988,0.173301,60624.0,60623.0,0.23407965]
[1720025732209,0.00835,60624.0,60623.0,0.23407965]
[1720025732668,0.00835,60624.0,60623.0,1.22633965]
[1720025732954,0.00835,60624.0,60623.0,0.73147965]
[1720025733190,0.00835,60624.0,60623.0,0.46457965]
[1720025733391,0.00835,60624.0,60623.0,0.41497965]
[1720025733392,0.173301,60624.0,60623.0,0.41497965]
[1720025733752,0.00835,60624.0,60623.0,0.42897965]
[1720025734067,0.10835,60624.0,60623.0,0.42897965]
[1720025734669,0.10835,60624.0,60623.0,0.72897965]
[1720025734881,0.00835,60624.0,60623.0,0.42897965]
[1720025735038,0.10835,60624.0,60623.0,0.44297965]
[1720025735249,0.10835,60624.0,60623.0,0.89393265]
[1720025735465,0.10835,60624.0,60623.0,0.91693265]
[1720025736094,0.00835,60624.0,60623.0,0.91693265]
[1720025736294,0.00835,60624.0,60623.0,0.45197965]
[1720025736490,0.00835,60624.0,60623.0,0.46597965]
[1720025737092,0.00835,60624.0,60623.0,0.45197965]
[1720025737513,0.00835,60624.0,60623.0,0.46597965]
[1720025737992,0.10835,60624.0,60623.0,0.45197965]
[1720025738473,0.10835,60624.0,60623.0,0.46597965]
[1720025738962,0.10835,60624.0,60623.0,0.76597965]
[1720025739198,0.00835,60624.0,60623.0,0.84613547]
[1720025740922,0.00835,60624.0,60623.0,0.76597965]
[1720025741568,0.00835,60624.0,60623.0,1.43063315]
[1720025741804,0.00835,60624.0,60623.0,1.76054015]
[1720025741991,0.00835,60624.0,60623.0,1.56064015]
[1720025742184,0.00835,60624.0,60623.0,1.46373315]
[1720025742769,0.00835,60624.0,60623.0,1.29878015]
[1720025742935,0.00835,60624.0,60623.0,1.28478015]
[1720025743153,0.00835,60624.0,60623.0,1.51588897]
[1720025743357,0.00835,60624.0,60623.0,1.52988897]
[1720025743687,0.00835,60624.0,60623.0,1.54388897]
[1720025743953,0.00835,60624.0,60623.0,1.51588897]
[1720025744384,0.00835,60624.0,60623.0,1.52988897]
[1720025744508,0.00835,60624.0,60623.0,1.51588897]
[1720025744915,0.00835,60624.0,60623.0,1.43573315]
[1720025745211,0.00835,60624.0,60623.0,0.97078015]
[1720025745419,0.173301,60624.0,60623.0,0.61487965]
[1720025745612,0.173301,60624.0,60623.0,0.62887965]
[1720025745820,0.503203,60624.0,60623.0,0.44797965]
[1720025746041,0.503203,60624.0,60623.0,0.46197965]
[1720025746242,0.173301,60624.0,60623.0,0.51406265]
[1720025746447,0.173301,60624.0,60623.0,0.52806265]
[1720025746645,0.00835,60624.0,60623.0,0.52806265]
[1720025746850,0.00835,60624.0,60623.0,0.31416265]
[1720025747057,0.00835,60624.0,60623.0,0.80006265]
[1720025747257,0.00835,60624.0,60623.0,0.81406265]
[1720025747674,0.00835,60624.0,60623.0,0.92731847]
[1720025747936,0.00835,60624.0,60623.0,0.94131847]
[1720025748933,0.00835,60624.0,60623.0,2.26228597]
[1720025749086,0.00835,60624.0,60623.0,2.57819297]
[1720025749287,0.00835,60624.0,60623.0,2.59219297]
[1720025749716,0.00835,60624.0,60623.0,2.57819297]
[1720025750053,0.00835,60624.0,60623.0,2.24828597]
[1720025750192,0.00835,60624.0,60623.0,2.26228597]
[1720025750817,0.00835,60624.0,60623.0,2.27628597]
[1720025751606,0.00835,60624.0,60623.0,1.86622315]
[1720025751808,0.00835,60624.0,60623.0,0.73846265]
[1720025752056,0.00835,60624.0,60623.0,0.71546265]
[1720025752057,0.173301,60624.0,60623.0,0.71546265]
[1720025752459,0.173301,60624.0,60623.0,1.04856265]
[1720025752460,0.00835,60624.0,60623.0,1.04856265]
[1720025753734,0.00835,60624.0,60623.0,1.01546265]
[1720025753937,0.00835,60624.0,60623.0,1.53631615]
[1720025755681,0.00835,60624.0,60623.0,1.23631615]
[1720025755914,0.00835,60624.0,60623.0,1.07136315]
[1720025756115,0.00835,60624.0,60623.0,0.74856265]
[1720025756234,0.173301,60624.0,60623.0,0.71546265]
[1720025756437,0.00835,60624.0,60623.0,0.71546265]
[1720025756837,1.163007,60624.0,60623.0,0.29816265]
[1720025757119,1.163007,60624.0,60623.0,0.23207965]
[1720025757251,1.263007,60624.0,60623.0,0.23207965]
[1720025757436,0.933105,60624.0,60623.0,0.23207965]
[1720025758978,0.933105,60624.0,60623.0,0.24807965]
[1720025759176,0.933105,60624.0,60623.0,0.23207965]
[1720025759381,0.10835,60624.0,60623.0,0.26207965]
[1720025759580,0.833105,60624.0,60623.0,0.24807965]
[1720025759904,0.933105,60624.0,60623.0,0.24807965]
[1720025760403,0.933105,60624.0,60623.0,0.26207965]
[1720025761588,0.933105,60624.0,60623.0,0.23207965]
[1720025762833,0.9333045,60624.0,60623.0,0.1882988]
[1720025763042,1.6782085,60624.0,60623.0,0.1882988]
[1720025763816,1.6782085,60624.0,60623.0,0.1742988]
[1720025764039,2.0090105,60624.0,60623.0,0.014]
[1720025764211,2.0090105,60624.0,60612.0,0.468513]
[1720025764212,0.824905,60613.0,60612.0,0.51229385]
[1720025764416,0.824905,60613.0,60612.0,0.67259265]
[1720025764417,1.339967,60613.0,60612.0,0.67259265]
[1720025764657,1.6701285,60613.0,60612.0,0.67259265]
[1720025765452,1.6701285,60613.0,60612.0,0.6288118]
[1720025766232,2.7806205,60613.0,60612.0,0.014913]
[1720025766440,2.7698515,60613.0,60612.0,0.014913]
[1720025766642,2.77004929,60613.0,60612.0,0.014913]
[1720025766778,2.42531179,60613.0,60612.0,0.014913]
[1720025767006,2.42441179,60613.0,60612.0,0.014913]
[1720025767207,2.42531193,60613.0,60612.0,0.014913]
[1720025767813,2.38858668,60613.0,60612.0,0.000913]
[1720025768016,2.39358668,60613.0,60612.0,0.000913]
[1720025768236,2.76327393,60613.0,60612.0,0.000913]
[1720025768444,2.75527393,60613.0,60612.0,0.000913]
[1720025768841,0.82515,60595.0,60594.0,0.04378085]
[1720025769112,1.2554095,60595.0,60594.0,0.20407965]
[1720025769843,1.2554095,60595.0,60594.0,0.1602988]
[1720025769844,1.5854695,60595.0,60594.0,0.1602988]
[1720025770138,1.9155295,60595.0,60594.0,0.1602988]
[1720025770468,1.9164295,60595.0,60594.0,0.1602988]
[1720025770702,1.9164295,60595.0,60586.0,0.4676]
[1720025770703,0.825257,60587.0,60586.0,0.4676]
[1720025770892,1.3367595,60587.0,60586.0,0.6278988]
[1720025771048,1.3367595,60587.0,60586.0,0.1602988]
[1720025771049,2.1861655,60587.0,60586.0,0.1602988]
[1720025772594,2.1861655,60587.0,60586.0,0.1702988]
[1720025772990,2.1870655,60587.0,60586.0,0.1702988]
[1720025773396,2.18719501,60587.0,60586.0,0.1702988]
[1720025773593,2.18809501,60587.0,60586.0,0.1702988]
[1720025774196,2.18909501,60587.0,60586.0,0.1782988]
[1720025775209,2.82389456,60587.0,60586.0,1e-06]
[1720025775404,2.86164932,60587.0,60586.0,1e-06]
[1720025775604,2.70128626,60587.0,60586.0,1e-06]
[1720025776207,2.70428626,60587.0,60586.0,1e-06]
[1720025776607,2.37418326,60587.0,60586.0,1e-06]
[1720025776809,0.495228,60578.0,60577.0,0.04378085]
[1720025776972,0.595228,60578.0,60577.0,0.20407965]
[1720025777169,1.255532,60578.0,60577.0,0.20407965]
[1720025777587,1.2557315,60578.0,60577.0,0.20407965]
[1720025777849,1.62924567,60578.0,60577.0,0.1602988]
[1720025778229,1.62924567,60578.0,60577.0,0.20407965]
[1720025778528,1.25658559,60578.0,60577.0,0.20407965]
[1720025778726,1.255532,60578.0,60577.0,0.38817965]
[1720025779737,1.256532,60578.0,60577.0,0.39217965]
[1720025780074,1.255532,60578.0,60577.0,0.38817965]
[1720025780399,1.257532,60578.0,60577.0,0.3553988]
[1720025780600,1.257532,60578.0,60577.0,0.21507965]
[1720025780852,1.256532,60578.0,60577.0,0.21107965]
[1720025781089,1.255532,60578.0,60577.0,0.1602988]
[1720025781228,1.256532,60578.0,60577.0,0.20807965]
[1720025781431,1.256532,60578.0,60577.0,0.1642988]
[1720025782672,1.255532,60578.0,60577.0,0.1602988]
[1720025783005,1.5868835,60578.0,60577.0,0.1722988]
[1720025783132,1.5878835,60578.0,60577.0,0.1732988]
[1720025783368,1.96235977,60578.0,60577.0,0.013]
[1720025783577,1.96135977,60578.0,60577.0,0.012]
[1720025783760,0.4954695,60573.0,60572.0,0.0002]
[1720025783960,1.29813808,60573.0,60572.0,0.1604988]
[1720025784163,1.29925377,60573.0,60572.0,0.1604988]
[1720025784703,1.62943377,60573.0,60572.0,0.1604988]
[1720025786630,1.62943377,60573.0,60572.0,0.1694988]
[1720025786845,1.63043377,60573.0,60572.0,0.1694988]
[1720025787053,1.63143377,60573.0,60572.0,0.1764988]
[1720025787476,1.58912519,60573.0,60572.0,0.1764988]
[1720025788291,1.58912519,60573.0,60572.0,0.0162]
[1720025788292,2.49606519,60573.0,60572.0,0.0162]
[1720025788511,3.05775377,60573.0,60572.0,0.0162]
[1720025788709,3.05775377,60573.0,60572.0,1e-06]
[1720025788710,3.35775294,60573.0,60572.0,1e-06]
[1720025788917,3.31432867,60573.0,60572.0,1e-06]
[1720025789123,3.35778472,60573.0,60572.0,1e-06]
[1720025789534,3.35678472,60573.0,60572.0,1e-06]
[1720025790141,0.4964505,60563.0,60557.0,0.000924]
[1720025790363,1.77519208,60563.0,60557.0,0.000924]
[1720025790560,1.85338708,60563.0,60557.0,0.000924]
[1720025790960,2.51385508,60563.0,60557.0,0.000924]
[1720025791159,2.84408908,60563.0,60557.0,0.000924]
[1720025791359,2.84508908,60563.0,60557.0,0.000924]
[1720025791780,2.84408908,60563.0,60557.0,0.000924]
[1720025792593,3.17432308,60563.0,60562.0,1e-06]
[1720025792767,3.17548681,60563.0,60562.0,1e-06]
[1720025792962,3.17548681,60563.0,60562.0,0.001001]
[1720025793210,2.56059281,60563.0,60562.0,0.001001]
[1720025793362,2.56149281,60563.0,60562.0,0.001001]
[1720025793573,3.45312081,60563.0,60562.0,0.001001]
[1720025793772,3.45512081,60563.0,60562.0,0.001001]
[1720025794763,3.30221081,60563.0,60562.0,0.001001]
[1720025794964,3.31121081,60563.0,60562.0,0.001001]
[1720025795355,3.31031081,60563.0,60562.0,0.001001]
[1720025795568,1.95995881,60563.0,60562.0,0.001001]
[1720025795939,1.95995881,60563.0,60562.0,1e-06]
[1720025796097,1.96695881,60563.0,60562.0,1e-06]
[1720025796504,1.95995881,60563.0,60562.0,1e-06]
[1720025796711,1.15698273,60563.0,60562.0,0.38368065]
[1720025796893,1.158719,60563.0,60562.0,0.38368065]
[1720025797090,1.166619,60563.0,60562.0,0.38368065]
[1720025797552,1.158619,60563.0,60562.0,0.38368065]
[1720025797910,1.162619,60563.0,60562.0,0.38368065]
[1720025798419,1.158619,60563.0,60562.0,0.3398998]
[1720025798568,1.258619,60563.0,60562.0,0.38368065]
[1720025798761,1.259619,60563.0,60562.0,0.38468065]
[1720025798965,1.256519,60563.0,60562.0,0.38468065]
[1720025799432,1.256519,60563.0,60562.0,0.43833112]
[1720025799433,1.257519,60563.0,60562.0,0.43833112]
[1720025799572,1.256519,60563.0,60562.0,0.43335928]
[1720025799790,1.2567185,60563.0,60562.0,0.25375928]
[1720025800012,1.2578185,60563.0,60562.0,0.1662998]
[1720025800219,1.2568185,60563.0,60562.0,0.20997843]
[1720025800414,1.2558185,60563.0,60562.0,0.1603998]
[1720025800623,1.2568185,60563.0,60562.0,0.1663998]
[1720025800836,1.30419908,60563.0,60562.0,0.1683998]
[1720025801501,1.30319908,60563.0,60562.0,0.1663998]
[1720025802080,1.30429908,60563.0,60562.0,0.1683998]
[1720025802286,1.49439908,60563.0,60562.0,0.1683998]
[1720025802495,1.49439908,60563.0,60562.0,0.1664998]
[1720025802496,1.49339908,60563.0,60562.0,0.1664998]
[1720025802697,1.49249908,60563.0,60562.0,0.1664998]
[1720025803044,0.03745338,60568.0,60562.0,0.20928067]
[1720025803251,0.13745338,60568.0,60563.0,0.04877741]
[1720025803627,0.18151621,60568.0,60564.0,0.04877741]
[1720025803838,0.04406283,60567.0,60562.0,0.1654998]
[1720025804028,0.1892,60564.0,60562.0,0.1654998]
[1720025804305,0.23326283,60564.0,60562.0,0.1604998]
[1720025804433,0.001,60563.0,60562.0,0.21527721]
[1720025804637,0.0011,60563.0,60562.0,0.21527721]
[1720025804843,0.0011,60563.0,60562.0,0.21027721]
[1720025805282,0.0001,60563.0,60562.0,0.20927721]
[1720025805426,0.0001,60563.0,60562.0,0.2346711]
[1720025805427,0.1001,60563.0,60562.0,0.2346711]
[1720025805632,0.1002,60563.0,60562.0,0.2346711]
[1720025805829,0.1002,60563.0,60562.0,0.23479506]
[1720025806036,0.1002,60563.0,60562.0,0.23379506]
[1720025806247,0.1002,60563.0,60562.0,0.23379896]
[1720025806453,0.1002,60563.0,60562.0,0.1604998]
[1720025806862,0.1012,60563.0,60562.0,0.1614998]
[1720025807064,0.0012,60563.0,60562.0,0.1614998]
[1720025807415,0.56060583,60563.0,60562.0,0.001201]
[1720025807616,0.93335183,60563.0,60562.0,0.006201]
[1720025808021,0.93335183,60563.0,60562.0,0.001201]
[1720025808260,0.93335183,60563.0,60562.0,0.05010773]
[1720025808460,1.03120972,60563.0,60562.0,0.006201]
[1720025808813,1.03020972,60563.0,60562.0,0.001201]
[1720025809009,1.03021822,60563.0,60562.0,0.001201]
[1720025809329,0.24112922,60563.0,60562.0,0.000201]
[1720025809532,2.58221417,60563.0,60562.0,0.000201]
[1720025810080,2.56821417,60563.0,60562.0,0.000201]
[1720025810282,2.62735747,60563.0,60562.0,0.000201]
[1720025810477,1.14913747,60563.0,60562.0,0.000201]
[1720025810734,0.82932217,60563.0,60562.0,0.000201]
[1720025811155,0.84032217,60563.0,60562.0,0.000201]
[1720025811564,0.8884198,60563.0,60562.0,0.000201]
[1720025811946,0.8964198,60563.0,60562.0,0.000201]
[1720025812145,0.8884198,60563.0,60562.0,0.000201]
[1720025812466,0.86343777,60563.0,60562.0,0.000201]
[1720025812628,0.89337392,60563.0,60562.0,0.000201]
[1720025812826,0.88637392,60563.0,60562.0,0.000201]
[1720025813029,0.87737392,60563.0,60562.0,0.000201]
[1720025813642,0.88837392,60563.0,60562.0,0.000201]
[1720025814039,0.87737392,60563.0,60562.0,0.000201]
[1720025814262,0.88537392,60563.0,60562.0,0.000201]
[1720025814683,0.87737392,60563.0,60562.0,0.000201]
[1720025814898,0.88737392,60563.0,60562.0,0.000201]
[1720025815659,0.88738242,60563.0,60562.0,0.000201]
[1720025815976,0.89938242,60563.0,60562.0,0.000201]
[1720025818393,0.85531959,60563.0,60562.0,0.000201]
[1720025819071,0.77519,60563.0,60562.0,0.000201]
[1720025819397,0.85539323,60563.0,60562.0,0.000201]
[1720025819598,0.85538891,60563.0,60562.0,0.000201]
[1720025821303,0.33696991,60563.0,60562.0,0.20518065]
[1720025821503,0.1172,60563.0,60562.0,0.20518065]
[1720025821711,0.03274923,60563.0,60562.0,0.20518065]
[1720025822266,0.03274923,60563.0,60562.0,0.28918065]
[1720025822541,0.03246545,60563.0,60562.0,0.31918065]
[1720025822677,0.03246545,60563.0,60562.0,0.42238065]
[1720025822861,0.01,60563.0,60562.0,0.4715351]
[1720025823066,0.1892,60583.0,60573.0,0.1938]
[1720025823267,0.05962774,60582.0,60574.0,0.1602988]
[1720025823487,0.05962774,60581.0,60574.0,0.1602988]
[1720025823700,0.1892,60583.0,60574.0,0.1602988]
[1720025823701,0.05962774,60580.0,60574.0,0.1602988]
[1720025823912,0.05962774,60579.0,60574.0,0.20487965]
[1720025824109,0.05962774,60578.0,60574.0,0.20487965]
[1720025824315,0.01044825,60577.0,60574.0,0.20487965]
[1720025824515,0.01044825,60576.0,60574.0,0.20487965]
[1720025824713,0.01029784,60575.0,60574.0,0.20487965]
[1720025824958,0.01029784,60582.0,60574.0,0.20477965]
[1720025825163,0.04851699,60581.0,60574.0,0.20467965]
[1720025825380,0.05881483,60580.0,60574.0,0.20467965]
[1720025825691,0.1892,60583.0,60565.0,0.0806]
[1720025825692,0.1892,60575.0,60565.0,0.0806]
[1720025825864,0.0914,60578.0,60563.0,0.1048]
[1720025825865,0.1892,60566.0,60563.0,0.1048]
[1720025826027,0.11029784,60565.0,60564.0,0.1602988]
[1720025826239,0.15875198,60565.0,60564.0,0.1602988]
[1720025827253,0.15875198,60565.0,60564.0,0.1601988]
[1720025827254,0.16175198,60565.0,60564.0,0.1601988]
[1720025827459,0.18752575,60566.0,60564.0,0.1601988]
[1720025827655,0.1,60565.0,60564.0,0.1600988]
[1720025828059,0.1,60565.0,60564.0,0.1599988]
[1720025828260,0.102,60565.0,60564.0,0.1599988]
[1720025828535,0.0001,60563.0,60562.0,0.000201]
[1720025828920,0.0001,60563.0,60562.0,0.1604998]
[1720025829497,0.0001,60563.0,60562.0,0.000201]
[1720025829699,0.841973,60563.0,60562.0,0.004201]
[1720025829911,0.796841,60563.0,60562.0,0.004201]
[1720025831019,0.796841,60563.0,60562.0,0.005201]
[1720025831213,0.696841,60563.0,60562.0,0.005201]
[1720025831415,0.532041,60563.0,60562.0,0.005201]
[1720025831620,0.1001,60563.0,60562.0,0.005201]
[1720025831818,0.0001,60563.0,60562.0,0.005201]
[1720025832006,0.0001,60563.0,60562.0,0.39678065]
[1720025832538,0.0001,60563.0,60562.0,0.3520998]
[1720025833017,0.0041,60563.0,60562.0,0.3520998]
[1720025833359,0.0001,60563.0,60562.0,0.3480998]
[1720025833596,0.0011,60563.0,60562.0,0.3480998]
[1720025833953,0.0011,60563.0,60562.0,0.3470998]
[1720025834359,0.0081,60563.0,60562.0,0.3480998]
[1720025834933,0.0011,60563.0,60562.0,0.3470998]
[1720025836556,0.0001,60565.0,60564.0,0.39697965]
[1720025836762,0.00094,60565.0,60564.0,0.39697965]
[1720025837320,0.00194,60565.0,60564.0,0.40197965]
[1720025837763,0.01223799,60565.0,60564.0,0.40197965]
[1720025838330,0.01323799,60565.0,60564.0,0.40697965]
[1720025838952,0.01333799,60565.0,60564.0,0.40697965]
[1720025839516,0.01333799,60565.0,60564.0,0.43697965]
[1720025839728,0.01333799,60565.0,60564.0,0.40697965]
[1720025840753,0.00304,60565.0,60564.0,0.40697965]
[1720025841129,0.013338,60565.0,60564.0,0.40697965]
[1720025844165,0.01333799,60565.0,60564.0,0.40697965]
[1720025844574,0.00304,60565.0,60564.0,0.40697965]
[1720025845320,0.01333799,60565.0,60564.0,0.40697965]
[1720025845858,0.01333799,60565.0,60564.0,0.1702988]
[1720025845990,0.01333799,60565.0,60564.0,0.21497965]
[1720025846194,0.01333799,60565.0,60564.0,0.42827965]
[1720025846632,0.00304,60565.0,60564.0,0.42827965]
[1720025846905,0.01233732,60565.0,60564.0,0.72327965]
[1720025847098,0.1039,60591.0,60581.0,0.1095]
[1720025847307,0.05743507,60586.0,60582.0,0.1601988]
[1720025847662,0.05743507,60585.0,60582.0,0.1601988]
[1720025847860,0.05743507,60584.0,60582.0,0.1601988]
[1720025848158,0.0505084,60583.0,60582.0,0.1600988]
[1720025848357,0.04021114,60583.0,60582.0,0.1600988]
[1720025848501,0.01029726,60583.0,60582.0,0.1600988]
[1720025848706,0.0505084,60590.0,60582.0,0.1600988]
[1720025848919,0.014,60586.0,60582.0,0.1610988]
[1720025849126,0.0505084,60585.0,60582.0,0.1610988]
[1720025849338,0.014,60586.0,60582.0,0.1610988]
[1720025849339,0.2219494,60584.0,60582.0,0.1610988]
[1720025849674,0.063,60586.0,60582.0,0.1600988]
[1720025849675,0.1505084,60583.0,60582.0,0.1600988]
[1720025850458,0.0505084,60583.0,60582.0,0.1600988]
[1720025850774,0.0505084,60583.0,60582.0,0.1610988]
[1720025851217,0.0615084,60583.0,60582.0,0.001]
[1720025851461,0.5122384,60583.0,60582.0,0.001]
[1720025851668,0.5012384,60583.0,60571.0,0.4676]
[1720025851880,0.1892,60579.0,60572.0,0.1602988]
[1720025852105,0.1505084,60578.0,60572.0,0.1602988]
[1720025852282,0.0505084,60577.0,60572.0,0.1602988]
[1720025852487,0.0505084,60576.0,60572.0,0.1602988]
[1720025852702,0.0505084,60575.0,60572.0,0.1601988]
[1720025852907,0.1,60578.0,60572.0,0.1601988]
[1720025852908,0.01029726,60574.0,60572.0,0.1601988]
[1720025853044,0.01029726,60573.0,60572.0,0.1601988]
[1720025853247,0.01029726,60577.0,60572.0,0.1601988]
[1720025853477,0.014,60583.0,60572.0,0.1601988]
[1720025853478,0.01029726,60576.0,60574.0,0.04468085]
[1720025853676,0.114,60583.0,60575.0,0.1602988]
[1720025853899,0.04978671,60582.0,60578.0,0.0887]